bitfinex-derivatives/quotes_ETHF0:USTF0_20240922
["timestamp","ask_amount","ask_price","bid_price","bid_amount"]
[1727022877331,0.38914,2569.6,2569.4,2.9557]
[1727022877530,0.8657,2569.5,2569.4,2.9557]
[1727022877831,1.25486,2569.5,2569.4,2.9557]
[1727022878525,0.8657,2569.5,2569.4,2.9557]
[1727022879722,1.25486,2569.5,2569.4,2.9557]
[1727022879928,0.8657,2569.5,2569.4,2.9557]
[1727022880334,1.25486,2569.5,2569.4,2.9557]
[1727022881131,0.8657,2569.5,2569.3,0.8318]
[1727022881332,0.38917,2569.4,2569.3,0.8318]
[1727022881537,0.8657,2569.5,2569.3,2.9618]
[1727022882024,1.25486,2569.5,2569.3,2.9618]
[1727022882232,0.38917,2569.4,2569.3,2.9618]
[1727022882534,0.38919,2569.3,2569.1,2.9879]
[1727022882837,0.8657,2569.5,2569.1,3.8237]
[1727022882838,0.3892,2569.2,2569.1,3.8237]
[1727022883227,0.3892,2569.3,2569.1,3.8237]
[1727022883426,1.78994,2569.4,2568.7,2.13]
[1727022883629,0.38924,2569.0,2568.7,2.13]
[1727022885639,0.38928,2568.7,2568.6,4.8621]
[1727022885836,0.97311,2569.0,2568.6,4.8621]
[1727022885837,0.38927,2568.8,2568.6,6.9921]
[1727022886035,1.6349,2568.9,2568.7,2.13]
[1727022886338,0.8218,2568.9,2568.7,2.13]
[1727022886541,1.21105,2568.9,2568.7,2.13]
[1727022886740,0.8218,2568.9,2568.7,2.13]
[1727022886929,0.8218,2568.9,2568.7,2.9897]
[1727022887327,0.38925,2568.9,2568.7,2.9897]
[1727022887739,0.38926,2568.8,2568.7,2.9897]
[1727022888337,0.38926,2568.8,2568.7,2.13]
[1727022888738,0.8218,2569.1,2568.7,2.13]
[1727022888938,0.38923,2569.0,2568.9,2.13]
[1727022890537,0.8218,2569.1,2568.9,2.13]
[1727022890839,0.8218,2569.1,2568.9,5.3378]
[1727022890840,1.21102,2569.1,2568.9,5.3378]
[1727022891036,0.8218,2569.1,2569.0,0.8231]
[1727022892039,1.21102,2569.1,2569.0,0.8231]
[1727022892443,0.8218,2569.1,2569.0,0.8231]
[1727022892637,0.38921,2569.2,2569.0,0.8231]
[1727022892834,0.8131,2569.3,2569.0,0.8231]
[1727022892835,1.20229,2569.3,2569.1,2.9621]
[1727022893744,3.2078,2569.8,2569.2,3.2078]
[1727022894044,0.872,2569.7,2569.3,0.38919]
[1727022894344,0.872,2569.7,2569.2,3.2078]
[1727022894543,0.38915,2569.6,2569.2,3.59699]
[1727022894747,0.38916,2569.5,2569.2,3.59699]
[1727022895138,0.38915,2569.6,2569.3,0.38919]
[1727022895442,0.38915,2569.6,2569.5,2.13]
[1727022896442,1.26114,2569.7,2569.5,2.13]
[1727022896748,1.26114,2569.7,2569.6,0.868]
[1727022897242,0.38914,2569.6,2569.5,2.13]
[1727022897943,1.26113,2569.7,2569.5,2.13]
[1727022898342,0.872,2569.7,2569.5,2.13]
[1727022899237,0.38914,2569.6,2569.5,2.13]
[1727022900336,1.26114,2569.7,2569.5,2.13]
[1727022900538,0.872,2569.7,2569.5,2.13]
[1727022900738,0.872,2569.7,2569.6,3.2078]
[1727022901240,1.26113,2569.7,2569.6,3.2078]
[1727022909045,0.38917,2569.4,2569.3,3.9941]
[1727022909244,0.38917,2569.4,2569.3,6.1241]
[1727022909454,0.38917,2569.5,2569.3,6.1241]
[1727022909747,0.872,2569.7,2569.3,6.1241]
[1727022909748,1.26114,2569.7,2569.4,2.13]
[1727022909951,1.26114,2569.7,2569.6,2.13]
[1727022911345,1.26114,2569.7,2569.3,3.9941]
[1727022911346,0.38917,2569.4,2569.3,3.9941]
[1727022911552,1.26114,2569.7,2569.3,3.9941]
[1727022911746,1.26114,2569.7,2569.3,6.1241]
[1727022911953,0.38917,2569.4,2569.3,6.1241]
[1727022912345,0.872,2569.7,2569.3,6.1241]
[1727022912545,1.26113,2569.7,2569.6,2.13]
[1727022914857,0.872,2569.7,2569.6,2.13]
[1727022915353,1.26113,2569.7,2569.6,2.13]
[1727022915950,0.38917,2569.5,2569.4,2.13]
[1727022916145,0.872,2569.7,2569.4,2.13]
[1727022916348,0.38916,2569.5,2569.4,2.13]
[1727022917048,0.872,2569.7,2569.4,2.13]
[1727022917360,0.38914,2569.6,2569.4,2.13]
[1727022917557,0.38916,2569.5,2569.4,2.13]
[1727022920154,1.25415,2569.6,2569.4,2.13]
[1727022920352,0.865,2569.6,2569.4,2.13]
[1727022921059,0.38912,2569.8,2569.5,0.38915]
[1727022921251,0.38912,2569.8,2569.6,5.72694]
[1727022921458,1.692,2570.0,2569.7,0.8535]
[1727022921655,1.692,2570.0,2569.8,2.938]
[1727022922160,0.3891,2569.9,2569.8,2.938]
[1727022923063,2.08109,2570.0,2569.8,2.938]
[1727022923366,1.23058,2570.0,2569.8,2.938]
[1727022924462,0.3891,2569.9,2569.8,2.938]
[1727022924760,1.23059,2570.0,2569.8,2.938]
[1727022925063,1.23059,2570.0,2569.9,3.2078]
[1727022927168,1.23059,2570.0,2569.7,0.8535]
[1727022927169,4.7327,2570.0,2569.7,0.8535]
[1727022927369,0.38911,2569.8,2569.7,0.8535]
[1727022929668,1.19041,2569.9,2569.7,0.8535]
[1727022931656,0.38911,2569.8,2569.7,0.8535]
[1727022932063,0.38913,2569.7,2569.6,6.1923]
[1727022932272,1.25283,2569.7,2569.6,3.2078]
[1727022932461,0.38915,2569.6,2569.4,3.8437]
[1727022932663,1.18665,2569.6,2569.4,3.8437]
[1727022933172,0.7975,2569.6,2569.4,3.8437]
[1727022934269,0.38913,2569.7,2569.4,4.23287]
[1727022934472,0.38913,2569.7,2569.6,2.13]
[1727022936461,0.38916,2569.5,2569.4,1.0190214]
[1727022936669,0.38918,2569.4,2569.3,1.020114]
[1727022937061,0.38918,2569.4,2569.2,6.357914]
[1727022938469,0.38918,2569.4,2569.3,1.020114]
[1727022941063,0.38918,2569.4,2569.3,1.010114]
[1727022941270,1.18627,2569.5,2569.3,1.010114]
[1727022941477,1.18627,2569.5,2569.4,2.13]
[1727022942378,0.38917,2569.5,2569.4,2.13]
[1727022944974,4.28117,2569.5,2569.4,2.13]
[1727022945174,1.21797,2569.5,2569.4,2.13]
[1727022947180,2.732,2570.0,2569.4,2.51916]
[1727022947486,0.38912,2569.8,2569.7,2.13]
[1727022948282,0.38913,2569.7,2569.6,1.6317]
[1727022951679,0.38913,2569.7,2569.6,0.8377]
[1727022953386,0.38916,2569.5,2569.4,0.8485]
[1727022954184,1.18336,2569.5,2569.4,0.8485]
[1727022954491,1.18336,2569.5,2569.4,1.8285]
[1727022955779,0.7942,2569.5,2569.4,1.8285]
[1727022956285,1.18336,2569.5,2569.4,1.8285]
[1727022957987,0.8842,2569.7,2569.4,1.8285]
[1727022958184,0.38916,2569.5,2569.4,0.8485]
[1727022958492,0.38913,2569.7,2569.4,3.82673717]
[1727022958697,0.38913,2569.7,2569.5,4.0456]
[1727022958988,0.38912,2569.8,2569.6,0.98]
[1727022959179,0.38912,2569.8,2569.7,0.8329]
[1727022959877,1.2543,2569.9,2569.7,0.8329]
[1727022960186,0.3891,2569.9,2569.8,4.1878]
[1727022960482,0.3891,2569.9,2569.8,1.8124]
[1727022960987,1.2575,2569.9,2569.8,1.8124]
[1727022961182,1.2575,2569.9,2569.8,0.8324]
[1727022961388,0.38911,2569.8,2569.7,1.8129]
[1727022963690,1.25429,2570.0,2569.7,1.8129]
[1727022963886,0.38908,2570.1,2569.9,0.98]
[1727022964293,0.38908,2570.1,2570.0,0.8084]
[1727022964988,0.8436,2570.2,2570.0,0.8084]
[1727022965291,0.38902,2570.4,2570.1,4.991]
[1727022965488,0.38902,2570.4,2570.3,0.98]
[1727022966293,0.38902,2570.4,2570.2,2.13]
[1727022967095,0.38904,2570.3,2570.2,2.13]
[1727022967494,0.38903,2570.4,2570.2,2.13]
[1727022967689,0.38904,2570.3,2570.2,2.13]
[1727022969994,0.38903,2570.4,2570.2,2.13]
[1727022970292,0.38904,2570.3,2570.2,2.13]
[1727022970496,0.38902,2570.4,2570.2,2.13]
[1727022970884,0.8483,2570.5,2570.3,2.13]
[1727022971089,1.2373,2570.5,2570.4,0.8449]
[1727022971494,0.389,2570.5,2570.4,0.8449]
[1727022972393,0.389,2570.5,2570.4,1.7216]
[1727022972602,1.7039,2570.6,2570.4,1.7216]
[1727022972795,2.0929,2570.6,2570.5,0.8547]
[1727022975393,1.2326,2570.6,2570.5,0.8547]
[1727022975598,2.0691,2570.6,2570.5,0.8547]
[1727022976895,1.2326,2570.6,2570.5,0.8547]
[1727022979500,0.38902,2570.4,2570.3,2.13]
[1727022980305,0.37902,2570.4,2570.3,2.13]
[1727022980900,0.38904,2570.3,2570.2,1.6299]
[1727022981100,0.38904,2570.3,2570.2,3.7599]
[1727022982906,0.38903,2570.4,2570.2,3.7599]
[1727022983201,0.38904,2570.3,2570.2,3.7599]
[1727022984606,0.38908,2570.0,2569.9,4.135]
[1727022985000,0.3891,2569.9,2569.8,3.2078]
[1727022986308,0.3891,2569.9,2569.8,5.3378]
[1727022987597,2.5003,2570.2,2569.8,5.3378]
[1727022987800,2.5003,2570.2,2570.0,2.13]
[1727022988307,2.5003,2570.2,2570.1,0.98]
[1727022988510,2.88935,2570.2,2570.1,0.98]
[1727022988700,0.8437,2570.2,2570.1,4.1878]
[1727022988904,1.6647,2570.5,2570.1,4.1878]
[1727022989107,1.6647,2570.5,2570.4,0.98]
[1727022989108,2.0537,2570.5,2570.4,0.98]
[1727022989404,2.0537,2570.5,2570.1,3.2078]
[1727022989405,0.38905,2570.2,2570.1,3.2078]
[1727022989606,0.38905,2570.3,2570.1,3.2078]
[1727022989807,1.6647,2570.5,2570.3,0.98]
[1727022989808,0.38904,2570.4,2570.3,0.98]
[1727022997931,4.27944,2570.4,2570.3,0.98]
[1727022998129,0.38904,2570.3,2570.2,0.98]
[1727022998436,1.25334,2570.3,2570.2,0.98]
[1727022998637,5.14374,2570.3,2570.2,0.98]
[1727023000029,1.25334,2570.3,2570.2,0.98]
[1727023001926,1.25334,2570.3,2569.9,2.5286]
[1727023001927,12.7073,2570.3,2569.7,7.3428]
[1727023002228,0.38911,2569.8,2569.7,7.3428]
[1727023002431,0.38911,2569.8,2569.7,8.3228]
[1727023003030,0.38911,2569.8,2569.7,9.1387]
[1727023007336,0.38911,2569.8,2569.7,5.0037]
[1727023008036,0.38917,2569.4,2569.3,0.8724]
[1727023008232,3.69982,2569.7,2569.3,2.6454]
[1727023008437,0.38917,2569.5,2569.3,1.6654]
[1727023010936,3.69982,2569.7,2569.4,0.98]
[1727023011239,0.38916,2569.5,2569.4,0.98]
[1727023013027,0.38916,2569.5,2569.3,1.6654]
[1727023013246,0.38916,2569.5,2569.4,0.98]
[1727023014532,3.84781658,2569.7,2569.4,0.98]
[1727023014533,3.11414,2569.7,2569.4,0.98]
[1727023014736,3.11414,2569.7,2569.6,0.98]
[1727023015429,0.38914,2569.7,2569.6,0.98]
[1727023015634,1.6898,2569.9,2569.6,0.98]
[1727023015940,2.0789,2569.9,2569.8,0.98]
[1727023017232,0.38911,2569.8,2569.7,1.7576]
[1727023017852,2.0789,2569.9,2569.7,1.7576]
[1727023018235,2.0789,2569.9,2569.8,0.8037]
[1727023018942,0.53369005,2570.0,2569.8,1.7837]
[1727023019339,0.3891,2569.9,2569.8,1.7837]
[1727023020449,0.7969,2570.1,2569.8,1.7837]
[1727023020644,0.38906,2570.2,2570.0,0.98]
[1727023020847,0.38906,2570.2,2570.1,0.7666]
[1727023021047,1.5367,2570.3,2570.1,0.7666]
[1727023021245,1.92574,2570.3,2570.2,0.98]
[1727023021545,3.69743,2570.8,2570.2,4.9299]
[1727023021746,0.38899,2570.6,2570.4,0.98]
[1727023021939,0.38899,2570.6,2570.5,0.767]
[1727023026954,0.38899,2570.6,2570.2,3.9499]
[1727023026955,0.38904,2570.3,2570.2,0.7421]
[1727023028366,3.8904,2570.3,2569.9,3.2078]
[1727023028564,0.38908,2570.0,2569.9,3.2078]
[1727023028763,0.38908,2570.1,2569.9,4.1878]
[1727023029160,0.38908,2570.0,2569.9,4.1878]
[1727023029760,0.38907,2570.1,2569.9,4.1878]
[1727023029962,0.38908,2570.0,2569.9,4.1878]
[1727023030264,0.38908,2570.0,2569.9,3.2078]
[1727023030466,0.38908,2570.0,2569.9,4.1878]
[1727023033968,0.3891,2569.9,2569.8,1.5381]
[1727023042584,0.38907,2570.1,2569.8,1.5381]
[1727023042781,0.38907,2570.1,2570.0,0.98]
[1727023044279,1.5491,2570.2,2570.0,1.7125]
[1727023044482,0.38904,2570.3,2570.0,1.7125]
[1727023044688,0.38904,2570.3,2570.2,4.1878]
[1727023044887,1.15963,2570.4,2570.2,4.1878]
[1727023045089,1.15963,2570.4,2570.3,0.7403]
[1727023045290,1.15963,2570.4,2570.3,1.5134]
[1727023050184,0.38902,2570.5,2570.3,1.5134]
[1727023050391,0.38902,2570.5,2570.4,0.7263]
[1727023055790,0.38902,2570.4,2570.3,1.5134]
[1727023056396,1.15922,2570.4,2570.3,1.5134]
[1727023056792,0.38907,2570.1,2570.0,0.7406]
[1727023056995,0.38907,2570.1,2569.9,1.4829]
[1727023056996,0.38908,2570.0,2569.9,1.4829]
[1727023057299,1.92928,2570.0,2569.9,1.4829]
[1727023059792,2.90928,2570.0,2569.9,0.758]
[1727023059995,2.90928,2570.0,2569.6,0.7346]
[1727023059996,0.38912,2569.8,2569.6,0.7346]
[1727023060294,0.3891,2569.9,2569.6,1.5096]
[1727023060893,0.38911,2569.8,2569.6,1.5096]
[1727023061307,2.5202,2570.0,2569.7,0.98]
[1727023061308,0.3891,2569.9,2569.7,0.98]
[1727023061501,0.38911,2569.8,2569.7,0.98]
[1727023061809,0.38911,2569.8,2569.6,1.5096]
[1727023065100,0.38911,2569.8,2569.6,2.52892502]
[1727023066094,1.5402,2570.0,2569.6,2.52892502]
[1727023066408,0.38908,2570.1,2569.9,0.98]
[1727023066708,0.38904,2570.3,2570.0,3.2102]
[1727023067106,0.38905,2570.2,2570.0,3.2102]
[1727023067301,0.7077,2570.4,2570.0,3.2102]
[1727023067609,0.38903,2570.4,2570.3,0.98]
[1727023068294,0.38902,2570.4,2570.3,0.98]
[1727023069611,0.38901,2570.5,2570.3,0.98]
[1727023069812,0.38901,2570.5,2570.4,0.7754]
[1727023070413,0.389,2570.6,2570.4,0.7754]
[1727023070710,0.389,2570.6,2570.5,0.7715]
[1727023074109,1.59832672,2570.7,2570.5,0.7715]
[1727023074298,1.98730672,2570.7,2570.5,0.7715]
[1727023074502,1.84398,2570.7,2570.5,0.7715]
[1727023075305,0.38899,2570.6,2570.5,0.7715]
[1727023075806,1.455,2570.7,2570.2,0.98]
[1727023075807,0.38904,2570.3,2570.2,0.98]
[1727023076006,2.435,2570.7,2570.1,0.7075]
[1727023076007,0.38905,2570.2,2570.1,0.7075]
[1727023076220,1.11765,2570.2,2570.1,0.7075]
[1727023076817,0.7286,2570.2,2570.1,0.7075]
[1727023077005,1.11765,2570.2,2570.1,0.7075]
[1727023078521,0.38907,2570.1,2570.0,1.7075]
[1727023078717,0.7251,2570.1,2570.0,1.7075]
[1727023079812,1.11417,2570.1,2570.0,1.7075]
[1727023080309,0.38908,2570.0,2569.9,0.7075]
[1727023080613,0.3891,2569.9,2569.8,0.7558]
[1727023081808,0.38911,2569.8,2569.7,4.1878]
[1727023082013,1.12661,2569.8,2569.7,4.1878]
[1727023082817,0.7375,2569.8,2569.7,4.1878]
[1727023083318,1.12661,2569.8,2569.7,4.1878]
[1727023084119,1.12661,2569.8,2569.7,0.98]
[1727023084412,0.7375,2569.8,2569.7,0.98]
[1727023085419,1.12661,2569.8,2569.7,0.98]
[1727023087015,0.7375,2569.8,2569.7,0.98]
[1727023087319,0.38909,2570.0,2569.7,4.8712]
[1727023087512,0.38909,2570.0,2569.6,4.32294]
[1727023087513,0.38909,2570.0,2569.9,0.98]
[1727023087915,0.38909,2570.0,2569.9,1.7523]
[1727023088217,0.38909,2570.0,2569.9,4.9601]
[1727023089718,0.38909,2570.0,2569.9,1.7523]
[1727023089912,0.38909,2570.0,2569.9,0.7723]
[1727023091721,1.11417,2570.1,2569.9,0.7723]
[1727023092418,1.11417,2570.1,2569.6,5.67332502]
[1727023092419,0.7251,2570.1,2569.6,5.67332502]
[1727023092621,0.38908,2570.0,2569.8,0.98]
[1727023092921,0.7251,2570.1,2569.8,0.98]
[1727023093314,0.38908,2570.0,2569.8,0.98]
[1727023093617,0.3891,2569.9,2569.8,0.98]
[1727023094123,0.38909,2570.0,2569.8,0.98]
[1727023094425,1.11417,2570.1,2569.8,0.98]
[1727023094611,0.3891,2569.9,2569.7,1.708]
[1727023095012,0.7533,2569.8,2569.7,1.708]
[1727023096219,1.14241,2569.8,2569.7,1.708]
[1727023096418,0.38913,2569.7,2569.6,3.9338]
[1727023096719,0.7686,2569.7,2569.6,3.9338]
[1727023097922,0.7533,2569.8,2569.6,5.93312502]
[1727023098122,1.14241,2569.8,2569.6,4.9138]
[1727023098324,1.14241,2569.8,2569.6,5.93312502]
[1727023098325,0.7533,2569.8,2569.6,5.93312502]
[1727023100229,1.14241,2569.8,2569.6,5.93312502]
[1727023101334,1.14242,2569.8,2569.6,5.93312502]
[1727023102627,1.14242,2569.8,2569.6,4.9138]
[1727023103021,1.14242,2569.8,2569.6,5.93312502]
[1727023105225,0.38913,2569.7,2569.6,5.93312502]
[1727023105426,0.38913,2569.7,2569.6,4.9138]
[1727023105933,0.38913,2569.7,2569.6,3.9338]
[1727023106231,1.14242,2569.8,2569.6,4.95312502]
[1727023106726,1.14242,2569.8,2569.6,3.9338]
[1727023109635,0.97265,2570.2,2569.7,0.98]
[1727023109932,0.38911,2569.9,2569.7,0.98]
[1727023110132,0.38911,2569.9,2569.8,0.7609]
[1727023110823,4.28031,2569.9,2569.8,0.7609]
[1727023111929,0.38911,2569.9,2569.8,0.7609]
[1727023112132,4.28031,2569.9,2569.8,0.7609]
[1727023112329,0.38911,2569.9,2569.8,0.7609]
[1727023112831,4.28031,2569.9,2569.8,0.7609]
[1727023114128,0.38909,2570.0,2569.8,1.7409]
[1727023114334,0.38909,2570.0,2569.9,3.2078]
[1727023114527,1.86227,2570.1,2569.9,3.2078]
[1727023114722,1.86227,2570.1,2570.0,0.7047]
[1727023115532,0.38904,2570.3,2570.0,0.7047]
[1727023115733,1.12264,2570.3,2570.0,1.6847]
[1727023116029,0.38906,2570.2,2570.0,1.6847]
[1727023116425,1.12264,2570.3,2570.0,1.6847]
[1727023116623,0.7336,2570.3,2570.0,1.6847]
[1727023116820,0.38907,2570.1,2570.0,0.7047]
[1727023118229,0.38906,2570.2,2570.0,0.7047]
[1727023121034,1.12265,2570.3,2570.0,0.7047]
[1727023121442,1.12265,2570.3,2570.0,2.70402502]
[1727023121939,0.772,2570.4,2570.1,0.98]
[1727023122132,0.38903,2570.4,2570.3,0.98]
[1727023122440,0.38902,2570.4,2570.3,0.98]
[1727023122740,0.38903,2570.4,2570.2,0.7014]
[1727023124237,0.38903,2570.4,2570.3,0.7053]
[1727023138246,0.38902,2570.4,2570.3,0.7053]
[1727023138550,0.38901,2570.5,2570.3,0.7053]
[1727023138752,0.38901,2570.5,2570.4,0.7325]
[1727023139150,4.27941,2570.5,2570.4,0.7325]
[1727023139354,0.38901,2570.5,2570.4,0.7325]
[1727023139546,4.27941,2570.5,2570.4,0.7325]
[1727023139851,0.38901,2570.5,2570.4,0.7325]
[1727023142956,0.38905,2570.2,2570.1,3.2078]
[1727023144552,16.5204,2570.2,2569.7,5.15432502]
[1727023144753,16.5204,2570.2,2569.7,4.135]
[1727023144754,0.38911,2569.8,2569.7,4.135]
[1727023145863,1.8758,2569.9,2569.7,4.135]
[1727023146461,1.8758,2569.9,2569.7,5.115]
[1727023146655,4.96530549,2570.5,2569.8,4.8712]
[1727023146865,10.72443826,2571.0,2570.4,0.98]
[1727023147160,0.7156,2570.7,2570.6,4.1878]
[1727023147657,0.7156,2570.7,2570.6,3.2078]
[1727023147658,1.10457,2570.7,2570.6,3.2078]
[1727023147957,0.38899,2570.6,2570.2,3.2078]
[1727023148161,2.07349,2570.6,2570.2,3.2078]
[1727023148458,0.7394,2570.5,2570.2,3.2078]
[1727023148761,1.12841,2570.5,2570.2,3.2078]
[1727023148949,0.38903,2570.4,2570.1,1.5306]
[1727023149155,0.7718,2570.3,2570.1,1.5306]
[1727023150354,1.7518,2570.3,2570.1,1.5306]
[1727023150754,0.7718,2570.3,2570.1,1.5306]
[1727023151057,1.16084,2570.3,2570.1,1.5306]
[1727023151362,0.38905,2570.2,2570.1,1.5306]
[1727023151961,1.14565,2570.2,2570.1,1.5306]
[1727023152765,0.7566,2570.2,2570.1,1.5306]
[1727023153855,1.14565,2570.2,2570.1,1.5306]
[1727023154256,0.7566,2570.2,2570.1,1.5306]
[1727023155961,1.14565,2570.2,2570.1,1.5306]
[1727023156465,0.38908,2570.0,2569.8,1.01932502]
[1727023156772,0.38907,2570.1,2569.8,2.50952502]
[1727023156967,0.7209,2569.9,2569.8,2.50952502]
[1727023158064,1.11,2569.9,2569.8,2.50952502]
[1727023158262,0.7209,2569.9,2569.8,2.50952502]
[1727023158465,1.11,2569.9,2569.8,2.50952502]
[1727023160965,1.11,2569.9,2569.8,1.4902]
[1727023161165,0.7209,2569.9,2569.8,1.4902]
[1727023162370,0.38909,2570.0,2569.8,2.4702]
[1727023162868,0.38909,2570.0,2569.8,2.4602]
[1727023163670,0.7158,2570.2,2569.8,2.4602]
[1727023164174,0.38907,2570.1,2570.0,0.98]
[1727023164360,1.10486,2570.2,2570.0,1.7414]
[1727023164770,0.38906,2570.2,2570.1,0.7294]
[1727023165175,1.16084,2570.3,2570.1,0.7294]
[1727023165672,0.38905,2570.2,2570.1,0.7294]
[1727023166073,0.38905,2570.2,2570.1,1.4326]
[1727023172170,0.38908,2570.0,2569.9,4.22712502]
[1727023172371,0.3891,2569.9,2569.8,1.01932502]
[1727023172571,0.38911,2569.8,2569.7,1.76722502]
[1727023172781,1.12531,2569.8,2569.7,1.76722502]
[1727023173470,0.7362,2569.8,2569.7,1.76722502]
[1727023173670,0.38911,2569.9,2569.7,2.74722502]
[1727023173867,0.38911,2569.9,2569.8,0.769]
[1727023175682,0.38911,2569.9,2569.7,0.7479]
[1727023175683,0.38911,2569.8,2569.7,0.7479]
[1727023176677,0.7101,2569.9,2569.7,0.7479]
[1727023176873,0.38911,2569.8,2569.7,0.7479]
[1727023177488,0.7227,2570.0,2569.7,1.7279]
[1727023177674,0.38906,2570.2,2569.9,0.98]
[1727023177875,0.38906,2570.2,2570.0,2.399]
[1727023178382,0.38906,2570.2,2570.1,0.7322]
[1727023182082,0.7321,2570.3,2570.1,0.7322]
[1727023182296,0.7321,2570.3,2570.2,0.98]
[1727023183276,1.12114,2570.3,2570.2,0.98]
[1727023185881,0.7321,2570.3,2570.2,0.98]
[1727023186283,0.38902,2570.4,2570.2,0.98]
[1727023186692,0.38894,2570.9,2570.3,4.8704]
[1727023186884,0.38894,2570.9,2570.8,0.98]
[1727023187090,0.38896,2570.8,2570.5,1.99932502]
[1727023187391,0.38897,2570.7,2570.6,0.7409]
[1727023187684,1.12827,2570.7,2570.6,0.7409]
[1727023187984,0.97248,2570.6,2570.2,8.36212502]
[1727023188181,0.38904,2570.3,2570.2,3.2078]
[1727023189593,1.12544,2570.3,2570.2,3.2078]
[1727023199600,0.38904,2570.3,2570.2,3.2078]
[1727023200106,0.6985,2570.6,2570.2,3.2078]
[1727023200409,0.38898,2570.7,2570.5,3.2078]
[1727023200600,0.38897,2570.8,2570.6,1.6976]
[1727023201097,0.38897,2570.8,2570.7,0.7469]
[1727023201494,1.15455,2570.9,2570.7,0.7469]
[1727023201899,0.38896,2570.8,2570.7,0.7469]
[1727023204193,5.84201,2570.8,2570.3,0.7274]
[1727023204414,1.95241,2570.8,2570.3,0.7274]
[1727023204600,0.38902,2570.4,2570.3,0.7274]
[1727023205710,0.38901,2570.5,2570.3,0.7274]
[1727023208617,0.38902,2570.4,2570.3,0.7274]
[1727023209209,0.7655,2570.6,2570.3,0.7274]
[1727023209708,1.15449,2570.6,2570.3,0.7274]
[1727023210015,1.15449,2570.6,2570.5,3.2078]
[1727023210405,1.15449,2570.6,2570.3,0.7274]
[1727023211413,0.7655,2570.6,2570.3,0.7274]
[1727023211612,0.38898,2570.7,2570.5,3.2078]
[1727023211812,0.38898,2570.7,2570.6,1.5038]
[1727023212616,2.45659,2570.9,2570.6,1.5038]
[1727023212617,1.4842,2570.9,2570.6,1.5038]
[1727023213008,0.38897,2570.8,2570.6,1.5038]
[1727023213909,0.38897,2570.8,2570.7,0.7378]
[1727023215019,0.38896,2570.8,2570.7,0.7378]
[1727023215209,1.87315,2570.9,2570.7,0.7378]
[1727023215806,1.87315,2570.9,2570.8,3.2078]
[1727023217215,1.4842,2570.9,2570.8,3.2078]
[1727023217417,0.38894,2571.0,2570.8,3.2078]
[1727023219315,0.38892,2571.1,2570.8,3.2078]
[1727023219719,1.10791,2571.2,2570.8,5.72675]
[1727023219916,5.3378,2571.6,2570.8,5.72675]
[1727023220122,5.3378,2571.6,2570.8,5.3378]
[1727023220123,0.97218,2571.4,2570.8,5.3378]
[1727023220321,0.38891,2571.2,2570.8,5.3378]
[1727023220514,0.38891,2571.2,2570.8,5.72675]
[1727023220816,0.38894,2571.0,2570.8,5.3378]
[1727023221018,0.38894,2571.0,2570.8,3.2078]
[1727023221321,1.14252,2571.1,2570.8,3.2078]
[1727023223121,0.7536,2571.1,2570.8,3.2078]
[1727023223617,1.14251,2571.1,2570.8,3.2078]
[1727023223820,0.7536,2571.1,2570.8,3.2078]
[1727023224116,1.14252,2571.1,2570.8,3.2078]
[1727023224520,1.14252,2571.1,2570.9,3.2078]
[1727023225024,1.14252,2571.1,2571.0,1.5087]
[1727023225222,1.14252,2571.1,2570.9,3.2078]
[1727023225223,0.38893,2571.0,2570.9,3.2078]
[1727023227819,4.27853,2571.0,2570.9,3.2078]
[1727023231325,5.84193,2571.0,2570.5,4.135]
[1727023231533,0.38897,2570.8,2570.5,6.3282]
[1727023231831,1.95233,2571.0,2570.5,2.1932]
[1727023232022,1.15438,2570.7,2570.5,2.1932]
[1727023232424,0.7654,2570.7,2570.6,0.98]
[1727023233015,0.38896,2570.8,2570.6,0.98]
[1727023235021,0.7654,2570.9,2570.6,0.98]
[1727023235324,0.38897,2570.8,2570.6,0.98]
[1727023238731,1.85595,2570.9,2570.6,0.98]
[1727023238926,0.7654,2570.9,2570.8,0.98]
[1727023239134,0.38893,2571.0,2570.8,0.98]
[1727023239331,0.38893,2571.0,2570.9,1.4492]
[1727023239527,0.38893,2571.0,2570.9,2.1696]
[1727023243938,0.38893,2571.0,2570.9,0.74]
[1727023245537,0.38893,2571.0,2570.9,1.72]
[1727023251048,0.38893,2571.0,2570.9,0.74]
[1727023251955,1.14932,2571.1,2570.9,1.72]
[1727023252148,0.38892,2571.1,2571.0,0.702]
[1727023252453,0.38892,2571.1,2571.0,1.4384]
[1727023253152,0.38891,2571.1,2571.0,1.4384]
[1727023260161,0.91032318,2571.3,2571.0,2.4184]
[1727023260162,1.15269,2571.3,2571.0,2.4184]
[1727023260361,1.15269,2571.3,2571.2,0.98]
[1727023261465,0.7638,2571.3,2571.2,0.98]
[1727023261672,1.15268,2571.3,2571.2,0.98]
[1727023261869,0.7638,2571.3,2571.2,0.98]
[1727023262265,0.3889,2571.2,2571.1,0.98]
[1727023262463,0.38891,2571.1,2571.0,0.702]
[1727023262662,1.85041,2571.2,2571.0,0.702]